bitfinex/quotes_SOLUSD_20241226
["timestamp","ask_amount","ask_price","bid_price","bid_amount"]
[1735222712254,0.12549,189.96,189.88,24.01260238]
[1735222712851,0.12549,189.96,189.87,24.01260238]
[1735222713792,0.12549,189.96,189.86,44.01260238]
[1735222715574,53.902374,189.96,189.85,24.01260238]
[1735222717856,0.12549,189.93,189.84,24.01260238]
[1735222718080,0.12549,189.89,189.81,24.01260238]
[1735222718264,0.12549,189.89,189.79,24.01260238]
[1735222718460,0.12549,189.89,189.78,24.01260238]
[1735222718957,0.12549,189.89,189.79,24.01260238]
[1735222719664,0.12549,189.89,189.8,24.01260238]
[1735222720159,0.12549,189.89,189.79,24.01260238]
[1735222720374,0.12549,189.87,189.77,24.01260238]
[1735222721671,0.12549,189.83,189.75,24.01260238]
[1735222722264,23.902374,189.85,189.75,24.01260238]
[1735222722473,23.902374,189.85,189.76,24.01260238]
[1735222722662,0.12549,189.83,189.76,24.01260238]
[1735222723486,0.12549,189.84,189.76,24.01260238]
[1735222723781,0.12549,189.84,189.77,24.01260238]
[1735222724559,20.0,189.86,189.79,24.01260238]
[1735222725181,1.8819,189.89,189.81,24.01260238]
[1735222725482,1.8819,189.93,189.83,24.01260238]
[1735222725785,1.8819,189.93,189.84,24.01260238]
[1735222725969,1.8819,189.93,189.78,6.2184]
[1735222725970,1.8819,189.93,189.83,24.01260238]
[1735222726373,1.8819,189.93,189.79,0.7900074]
[1735222726374,30.0,189.92,189.82,24.01260238]
[1735222727357,20.0,189.91,189.82,24.01260238]
[1735222727558,1.6486,189.95,189.8,36.948484]
[1735222727762,1.6486,189.95,189.87,24.01260238]
[1735222727982,1.6486,189.95,189.88,24.01260238]
[1735222728169,1.6486,190.0,189.91,24.01260238]
[1735222728581,30.12549,189.99,189.89,24.01260238]
[1735222728769,30.12549,189.99,189.88,24.01260238]
[1735222728962,30.0,189.99,189.88,24.01260238]
[1735222729492,23.776884,189.98,189.88,24.01260238]
[1735222730508,0.12549,189.96,189.88,24.01260238]
[1735222732003,0.12549,189.96,189.87,24.01260238]
[1735222732303,0.12549,189.96,189.87,15.00831448]
[1735222732682,0.12549,189.96,189.86,15.00831448]
[1735222733108,0.12549,189.96,189.87,15.00831448]
[1735222734010,7.8959,189.98,189.87,15.00831448]
[1735222734210,20.0,189.98,189.89,15.00831448]
[1735222734503,20.0,189.98,189.9,15.00831448]
[1735222735178,20.0,189.98,189.89,15.00831448]
[1735222736072,0.12549,189.97,189.88,15.00831448]
[1735222737868,38.02139,189.97,189.85,15.00831448]
[1735222738091,38.02139,189.97,189.85,35.00831448]
[1735222738399,30.12549,189.95,189.85,15.00831448]
[1735222738605,0.12549,189.91,189.82,15.00831448]
[1735222738891,0.12549,189.91,189.8,15.00831448]
[1735222739093,0.12549,189.91,189.82,15.00831448]
[1735222739472,30.12549,189.91,189.81,15.00831448]
[1735222739672,0.12549,189.91,189.83,15.00831448]
[1735222739988,0.12549,189.91,189.82,15.00831448]
[1735222740306,0.12549,189.89,189.8,15.00831448]
[1735222740486,1.6008,189.92,189.81,15.00831448]
[1735222740788,31.6008,189.92,189.82,15.00831448]
[1735222740974,0.12549,189.91,189.81,15.00831448]
[1735222741171,20.12549,189.91,189.83,15.00831448]
[1735222741372,1.6008,189.92,189.85,15.00831448]
[1735222741578,1.6008,189.96,189.88,15.00831448]
[1735222742092,0.12549,189.95,189.88,15.00831448]
[1735222742442,1.6008,189.96,189.88,15.00831448]
[1735222742616,1.6008,189.96,189.87,15.00831448]
[1735222742918,0.12549,189.94,189.86,15.00831448]
[1735222743074,0.12549,189.94,189.87,15.00831448]
[1735222743469,1.6008,189.96,189.88,15.00831448]
[1735222743676,1.6008,189.96,189.89,15.00831448]
[1735222743915,1.6008,189.96,189.9,15.00831448]
[1735222744284,1.6008,189.96,189.9,24.00712248]
[1735222744488,1.8819,189.98,189.9,24.00712248]
[1735222745100,20.0,189.97,189.89,24.00712248]
[1735222746011,20.0,189.97,189.87,0.78969122]
[1735222746012,30.12549,189.96,189.87,0.78969122]
[1735222746194,20.0,189.97,189.87,24.00712248]
[1735222746388,20.0,189.97,189.89,24.00712248]
[1735222746774,20.0,189.97,189.88,24.00712248]
[1735222746968,20.0,189.97,189.87,0.7898977]
[1735222747187,1.6008,190.0,189.94,24.00712248]
[1735222747399,8.21478145,190.04,189.95,24.00712248]
[1735222747578,8.21478145,190.04,189.96,24.00712248]
[1735222747775,8.21478145,190.04,189.97,24.00712248]
[1735222747974,8.21478145,190.04,189.94,24.00712248]
[1735222747975,0.12549,190.04,189.94,24.00712248]
[1735222748187,8.01849,190.04,189.94,24.00712248]
[1735222749000,8.01849,190.04,189.96,24.00712248]
[1735222749203,8.01849,190.04,189.95,24.00712248]
[1735222749500,8.01849,190.04,189.96,24.00712248]
[1735222750801,8.01849,190.04,189.95,24.00712248]
[1735222752022,38.01849,190.04,189.94,24.00712248]
[1735222752222,38.01849,190.04,189.92,24.00712248]
[1735222753187,38.01849,190.04,189.93,24.00712248]
[1735222753511,38.01849,190.04,189.92,44.00712248]
[1735222753738,30.12549,190.02,189.91,24.00712248]
[1735222755942,38.01959,190.02,189.9,24.00712248]
[1735222756514,38.01959,190.02,189.91,24.00712248]
[1735222757134,8.01959,190.02,189.92,24.00712248]
[1735222757308,30.0,190.04,189.92,24.00712248]
[1735222757309,30.0,190.04,189.93,24.00712248]
[1735222757711,30.0,190.02,189.91,24.00712248]
[1735222757913,0.12549,190.01,189.89,30.51682248]
[1735222758322,0.12549,189.98,189.88,24.00712248]
[1735222758507,0.12549,189.98,189.89,24.00712248]
[1735222758719,0.12549,189.98,189.9,24.00712248]
[1735222758906,0.12549,190.0,189.9,24.00712248]
[1735222759114,0.12549,190.0,189.91,24.00712248]
[1735222759325,30.0,190.03,189.92,24.00712248]
[1735222759936,0.12549,190.02,189.91,24.00712248]
[1735222761736,0.12549,190.0,189.91,24.00712248]
[1735222763242,0.12549,189.98,189.88,24.00712248]
[1735222764435,0.12549,189.98,189.89,15.00714412]
[1735222768346,0.12549,189.98,189.87,20.78978643]
[1735222768347,20.0,189.99,189.91,15.00714412]
[1735222769138,20.0,189.99,189.92,15.00714412]
[1735222769519,20.0,189.99,189.9,15.00714412]
[1735222769725,0.12549,189.98,189.89,15.00714412]
[1735222770017,0.12549,189.98,189.88,15.00714412]
[1735222770728,0.12549,189.98,189.87,15.00714412]
[1735222770729,0.12549,189.96,189.87,15.00714412]
[1735222770932,30.12549,189.94,189.84,15.00714412]
[1735222771328,30.12549,189.94,189.83,15.00714412]
[1735222772040,0.12549,189.92,189.83,15.00714412]
[1735222772650,0.12549,189.89,189.81,15.00714412]
[1735222772859,0.12549,189.87,189.8,15.00714412]
[1735222773152,20.12549,189.87,189.79,15.00714412]
[1735222775257,20.12549,189.87,189.81,15.00714412]
[1735222775258,0.12549,189.87,189.81,15.00714412]
[1735222775438,39.4077,189.93,189.84,15.00714412]
[1735222775752,1.5101,189.93,189.87,15.00714412]
[1735222775962,1.5101,189.93,189.86,15.00714412]
[1735222776331,0.12549,189.92,189.85,15.00714412]
[1735222776951,1.5101,189.93,189.85,15.00714412]
[1735222777570,0.12549,189.92,189.84,15.00714412]
[1735222777862,0.12549,189.92,189.83,15.00714412]
[1735222778153,0.12549,189.92,189.84,15.00714412]
[1735222778839,38.02379,189.92,189.81,15.00714412]
[1735222779252,0.12549,189.89,189.8,15.00714412]
[1735222779455,0.12549,189.89,189.79,15.00714412]
[1735222779632,0.12549,189.89,189.8,15.00714412]
[1735222781255,0.12549,189.89,189.81,15.00714412]
[1735222781556,39.4078,189.93,189.82,15.00714412]
[1735222781732,0.12549,189.92,189.82,15.00714412]
[1735222781924,0.12549,189.9,189.81,15.00714412]
[1735222782559,0.12549,189.88,189.79,15.00714412]
[1735222782935,0.12549,189.88,189.78,15.00714412]
[1735222783135,0.12549,189.88,189.77,15.00714412]
[1735222783849,0.12549,189.88,189.78,15.00714412]
[1735222784045,0.12549,189.85,189.78,15.00714412]
[1735222784554,0.12549,189.85,189.75,0.7902632]
[1735222784555,37.8993,189.89,189.77,15.00714412]
[1735222785052,0.12549,189.88,189.78,15.00714412]
[1735222786655,0.12549,189.84,189.76,15.00714412]
[1735222787055,0.12549,189.84,189.75,15.00714412]
[1735222787248,0.12549,189.84,189.74,15.00714412]
[1735222787478,30.12549,189.84,189.75,15.00714412]
[1735222788049,0.12549,189.84,189.75,15.00714412]
[1735222788258,0.12549,189.84,189.76,15.00714412]
[1735222788259,30.12549,189.84,189.76,15.00714412]
[1735222789034,30.12549,189.84,189.74,15.00714412]
[1735222789351,30.12549,189.84,189.73,15.00714412]
[1735222790154,20.0,189.81,189.73,15.00714412]
[1735222792237,20.0,189.81,189.74,15.00714412]
[1735222792634,30.12549,189.84,189.75,15.00714412]
[1735222793069,20.12549,189.84,189.77,15.00714412]
[1735222793564,20.12549,189.84,189.76,15.00714412]
[1735222795060,20.0,189.84,189.76,15.00714412]
[1735222795261,21.5411,189.85,189.78,15.00714412]
[1735222795640,1.5411,189.85,189.78,15.00714412]
[1735222796766,0.12549,189.84,189.77,15.00714412]
[1735222797267,0.12549,189.84,189.76,15.00714412]
[1735222797564,0.12549,189.84,189.78,15.00714412]
[1735222798647,0.12549,189.84,189.77,15.00714412]
[1735222799273,0.12549,189.84,189.76,15.00714412]
[1735222799663,30.12549,189.84,189.76,15.00714412]
[1735222800461,0.12549,189.84,189.76,15.00714412]
[1735222800664,0.12549,189.84,189.78,15.00714412]
[1735222801654,0.12549,189.84,189.76,15.00714412]
[1735222801968,33.5295,189.9,189.79,15.00714412]
[1735222802169,1.6476,189.9,189.82,15.00714412]
[1735222802525,1.6476,189.9,189.85,15.00714412]
[1735222802647,1.6476,189.9,189.84,15.00714412]
[1735222802988,0.12549,189.89,189.81,15.00714412]
[1735222803150,53.902374,189.89,189.78,15.00714412]
[1735222803347,0.12549,189.89,189.79,15.00714412]
[1735222803661,21.6476,189.9,189.82,15.00714412]
[1735222803840,1.6476,189.9,189.84,15.00714412]
[1735222804041,31.8819,189.94,189.85,15.00714412]
[1735222804679,0.12549,189.93,189.85,15.00714412]
[1735222805875,0.12549,189.94,189.87,15.00714412]
[1735222806049,2.110015,189.96,189.91,15.00714412]
[1735222806249,24.297489,189.98,189.91,15.00714412]
[1735222807259,0.12549,189.97,189.9,15.00714412]
[1735222807448,0.12549,189.97,189.88,15.00714412]
[1735222807850,0.12549,189.97,189.89,15.00714412]
[1735222808569,0.12549,189.97,189.85,24.56666593]
[1735222808570,24.297489,189.98,189.91,15.00714412]
[1735222808769,24.297489,189.98,189.92,15.00714412]
[1735222809072,24.297489,189.98,189.88,0.78967179]
[1735222809073,24.297489,189.98,189.91,15.00714412]
[1735222809245,24.297489,189.98,189.9,15.00714412]
[1735222810184,24.297489,189.98,189.91,15.00714412]
[1735222810675,24.297489,189.98,189.94,15.00714412]
[1735222811578,24.297489,189.98,189.95,15.00714412]
[1735222811770,24.297489,189.98,189.96,15.00714412]
[1735222811963,24.297489,189.98,189.95,15.00714412]
[1735222812379,24.297489,189.98,189.97,15.00714412]
[1735222812684,1.5724,190.05,189.97,15.00714412]
[1735222812883,1.5724,190.05,189.99,15.00714412]
[1735222813571,31.5724,190.1,190.0,15.00714412]
[1735222814178,0.12549,190.09,190.0,15.00714412]
[1735222814488,30.0,190.1,190.02,15.00714412]
[1735222814792,31.5724,190.15,190.06,15.00714412]
[1735222815362,8.21478145,190.17,190.09,15.00714412]
[1735222815586,8.21478145,190.17,190.11,15.00714412]
[1735222815889,49.28868874,190.18,190.11,15.00714412]
[1735222815890,30.0,190.19,190.11,15.00714412]
[1735222816096,30.0,190.19,190.1,15.00714412]
[1735222816265,24.79300101,190.2,190.12,15.00714412]
[1735222816586,24.79300101,190.2,190.13,15.00714412]
[1735222816587,0.12549,190.2,190.13,15.00714412]
[1735222816787,30.0,190.21,190.13,15.00714412]
[1735222817191,0.12549,190.2,190.12,15.00714412]
[1735222817370,0.12549,190.2,190.11,15.00714412]
[1735222817582,30.0,190.21,190.11,15.00714412]
[1735222817909,0.12549,190.2,190.13,15.00714412]
[1735222818074,31.5724,190.23,190.14,15.00714412]
[1735222818509,0.12549,190.22,190.12,15.00714412]
[1735222818799,0.12549,190.22,190.13,15.00714412]
[1735222820402,20.12549,190.22,190.13,15.00714412]
[1735222821478,20.12549,190.22,190.12,15.00714412]
[1735222821681,20.12549,190.2,190.1,21.48564412]
[1735222821903,0.12549,190.2,190.1,21.48564412]
[1735222823400,0.12549,190.17,190.08,15.00714412]
[1735222823575,0.12549,190.17,190.08,0.7889254]
[1735222823780,0.12549,190.17,190.09,15.00714412]
[1735222826017,0.12549,190.18,190.1,15.00714412]
[1735222826213,30.0,190.21,190.1,15.00714412]
[1735222826420,20.0,190.22,190.12,15.00714412]
[1735222826624,31.5724,190.23,190.12,15.00714412]
[1735222826625,1.5724,190.23,190.14,15.00714412]
[1735222826830,0.12549,190.22,190.13,15.79588196]
[1735222827619,0.12549,190.22,190.13,0.78873784]
[1735222827820,0.12549,190.22,190.12,38.78402812]
[1735222828017,0.12549,190.22,190.12,15.00714412]
[1735222828322,1.5724,190.23,190.14,15.00714412]
[1735222828527,0.12549,190.22,190.14,15.00714412]
[1735222829109,0.12549,190.22,190.14,23.776884]
[1735222829307,0.12549,190.22,190.08,28.15934412]
[1735222829308,50.12549,190.22,190.11,15.00714412]
[1735222829494,50.12549,190.22,190.1,15.00714412]
[1735222829694,50.12549,190.22,190.12,23.776884]
[1735222830522,50.12549,190.22,190.13,15.00714412]
[1735222830523,20.0,190.21,190.13,15.00714412]
[1735222831031,20.0,190.21,190.13,23.776884]
[1735222831328,0.12549,190.2,190.13,23.776884]
[1735222832637,0.12549,190.2,190.12,23.776884]
[1735222832841,0.12549,190.2,190.13,15.00714412]
[1735222833136,20.0,190.19,190.11,15.00714412]
[1735222833444,0.12549,190.21,190.12,15.00714412]
[1735222833741,20.0,190.19,190.12,15.00714412]
[1735222833954,0.12549,190.18,190.11,15.00714412]
[1735222834533,0.12549,190.18,190.12,23.776884]
[1735222835250,0.12549,190.16,190.06,6.0504]
[1735222835548,20.0,190.14,190.06,15.00714412]
[1735222836059,0.12549,190.11,190.04,15.00714412]
[1735222836426,30.12549,190.11,190.02,15.00714412]
[1735222836843,30.12549,190.11,190.04,23.776884]
[1735222837027,30.12549,190.11,190.03,15.00714412]
[1735222837548,30.12549,190.11,190.02,15.00714412]
[1735222837745,0.12549,190.07,190.01,15.00714412]
[1735222837928,0.12549,190.07,190.0,15.00714412]
[1735222838131,20.0,190.06,189.99,15.00714412]
[1735222838329,30.12549,190.05,189.98,15.00714412]
[1735222838645,30.12549,190.05,189.97,15.00714412]
[1735222839357,20.0,190.02,189.97,15.00714412]
[1735222841294,20.0,190.02,189.95,15.00714412]
[1735222841886,20.0,190.02,189.95,23.776884]
[1735222842087,20.0,190.02,189.95,38.78402812]
[1735222842768,0.12549,190.01,189.93,15.00714412]
[1735222843493,0.12549,190.01,189.95,15.00714412]
[1735222846200,0.12549,190.01,189.96,15.00714412]
[1735222846402,0.12549,190.01,189.9,17.44120152]
[1735222846403,30.0,190.07,189.99,38.78402812]
[1735222846564,1.6343,190.08,190.03,23.776884]
[1735222847604,0.12549,190.07,190.03,23.776884]
[1735222848060,1.6343,190.08,190.03,15.00714412]
[1735222848851,1.6343,190.08,190.01,15.00714412]
[1735222849063,1.6343,190.08,190.02,15.00714412]
[1735222850155,1.6343,190.08,190.04,23.776884]
[1735222852267,20.0,190.1,190.06,15.00714412]
[1735222852470,1.6251,190.15,190.1,23.776884]
[1735222852975,30.0,190.19,190.03,0.78898698]
[1735222852976,30.0,190.19,190.12,15.00714412]
[1735222853142,0.12549,190.18,190.12,15.00714412]
[1735222854040,0.12549,190.18,190.13,15.00714412]
[1735222854268,0.12549,190.18,190.12,15.00714412]
[1735222854667,30.0,190.19,190.12,15.00714412]
[1735222855041,0.12549,190.18,190.13,15.00714412]
[1735222855241,30.0,190.21,190.14,15.00714412]
[1735222855442,30.0,190.21,190.15,15.00714412]
[1735222855853,31.6251,190.27,190.17,15.00714412]
[1735222856755,31.6251,190.27,190.19,15.00714412]
[1735222857274,31.6251,190.27,190.21,15.00714412]
[1735222857458,0.12549,190.26,190.21,15.00714412]
[1735222858163,0.12549,190.26,190.2,15.00714412]
[1735222858463,0.12549,190.26,190.18,15.00714412]
[1735222858873,0.12549,190.26,190.19,15.00714412]
[1735222860069,0.12549,190.26,190.19,23.776884]
[1735222860673,0.12549,190.26,190.17,15.00714412]
[1735222860971,20.0,190.24,190.17,15.00714412]
[1735222861467,20.0,190.24,190.18,23.776884]
[1735222862877,20.0,190.24,190.16,21.03954412]
[1735222862878,0.12549,190.23,190.16,21.03954412]
[1735222863560,0.12549,190.23,190.17,38.78402812]
[1735222863873,20.0,190.24,190.17,38.78402812]
[1735222864049,20.0,190.25,190.17,38.78402812]
[1735222864466,0.12549,190.24,190.17,23.776884]
[1735222864664,0.12549,190.24,190.17,38.78402812]
[1735222865563,0.12549,190.24,190.17,23.776884]
[1735222865764,0.12549,190.24,190.17,38.78402812]
[1735222866159,20.0,190.26,190.19,15.00714412]
[1735222866357,20.0,190.28,190.21,23.776884]
[1735222867070,20.0,190.26,190.19,15.00714412]
[1735222867565,20.0,190.26,190.21,23.776884]
[1735222868178,0.12549,190.27,190.21,23.776884]
[1735222868350,0.12549,190.27,190.2,15.00714412]
[1735222868351,31.6251,190.31,190.24,15.00714412]
[1735222869073,0.12549,190.3,190.23,15.00714412]
[1735222869285,0.12549,190.3,190.22,15.00714412]
[1735222869490,0.12549,190.26,190.18,15.00714412]
[1735222869958,20.12549,190.24,190.17,15.00714412]
[1735222870284,20.12549,190.24,190.18,15.00714412]
[1735222870477,0.12549,190.24,190.18,15.00714412]
[1735222870674,0.12549,190.24,190.17,38.78402812]
[1735222870980,0.12549,190.19,190.11,6.80711421]
[1735222871188,20.0,190.18,190.1,16.58614412]
[1735222871478,0.12549,190.17,190.09,15.00714412]
[1735222871652,0.12549,190.17,190.08,15.00714412]
[1735222871653,20.0,190.16,190.08,15.00714412]
[1735222871857,0.12549,190.15,190.05,15.00714412]
[1735222872274,0.12549,190.1,190.04,15.00714412]
[1735222872486,20.0,190.11,190.05,15.00714412]
[1735222872776,0.12549,190.12,190.05,15.00714412]
[1735222872976,0.12549,190.12,190.03,15.00714412]
[1735222873359,0.12549,190.12,190.02,15.00714412]
[1735222873882,0.12549,190.1,190.01,15.00714412]
[1735222874177,0.12549,190.05,189.97,6.0185]
[1735222874380,0.12549,190.05,189.98,15.00714412]
[1735222874571,0.12549,190.05,189.98,38.78402812]
[1735222874878,20.0,190.07,189.98,15.00714412]
[1735222875085,20.0,190.07,189.98,38.78402812]
[1735222875381,20.0,190.05,189.99,23.776884]
[1735222875682,20.0,190.05,189.98,38.78402812]
[1735222875994,20.0,190.05,189.99,23.776884]
[1735222876194,20.0,190.05,189.97,21.02564412]
[1735222876355,20.0,190.07,189.98,38.78402812]
[1735222876562,31.6089,190.14,190.03,23.776884]
[1735222876761,31.6089,190.14,190.03,38.78402812]
[1735222876961,1.6089,190.14,190.03,38.78402812]
[1735222877164,30.0,190.16,190.05,23.776884]
[1735222877659,8.0656006,190.18,190.01,23.776884]
[1735222877976,0.12549,190.13,190.04,15.00714412]
[1735222878172,30.0,190.15,190.04,15.00714412]
[1735222878473,34.23799654,190.17,190.05,23.776884]
[1735222878679,20.0,190.12,190.03,23.776884]
[1735222878877,34.23799654,190.17,190.05,38.78402812]
[1735222879063,0.12549,190.16,190.06,38.78402812]
[1735222880192,20.0,190.14,190.06,38.78402812]
[1735222880381,20.0,190.14,190.05,15.00714412]
[1735222880580,20.0,190.14,190.06,15.00714412]
[1735222880785,20.0,190.14,190.05,23.776884]
[1735222880985,20.0,190.14,190.07,23.776884]
[1735222881496,0.12549,190.15,190.07,23.776884]
[1735222881878,0.12549,190.15,190.07,15.00714412]
[1735222882080,0.12549,190.18,190.07,15.00714412]
[1735222882482,30.0,190.23,190.12,15.00714412]
[1735222882704,3.452,190.24,190.13,38.78402812]
[1735222883075,30.0,190.25,190.15,23.776884]
[1735222883381,0.12549,190.22,190.12,15.00714412]
[1735222883688,0.12549,190.22,190.13,23.776884]
[1735222884292,20.0,190.2,190.13,23.776884]
[1735222884492,0.12549,190.22,190.13,15.00714412]
[1735222884693,0.12549,190.22,190.14,23.776884]
[1735222885187,0.12549,190.2,190.12,23.776884]
[1735222885494,0.12549,190.2,190.09,15.79588849]
[1735222885671,0.12549,190.18,190.09,15.00714412]
[1735222886894,0.12549,190.18,190.1,23.776884]
[1735222887193,0.12549,190.18,190.08,6.0856]
[1735222887194,0.12549,190.15,190.08,6.0856]
[1735222887494,0.12549,190.15,190.09,23.776884]
[1735222889095,20.0,190.17,190.11,15.00714412]
[1735222889296,30.0,190.22,190.12,15.00714412]
[1735222889600,30.0,190.22,190.13,23.776884]
[1735222889905,0.12549,190.21,190.13,23.776884]
[1735222890085,30.0,190.22,190.13,15.00714412]
[1735222890281,30.0,190.22,190.12,23.776884]
[1735222890484,0.12549,190.21,190.12,23.776884]
[1735222890688,0.12549,190.21,190.12,38.78402812]
[1735222891496,20.0,190.23,190.15,38.78402812]
[1735222891677,20.0,190.23,190.17,23.776884]
[1735222892210,0.12549,190.24,190.17,23.776884]
[1735222892504,0.12549,190.22,190.14,15.00714412]
[1735222892685,20.0,190.21,190.13,15.79574813]
[1735222893079,0.12549,190.2,190.13,0.78860401]
[1735222893280,0.12549,190.2,190.11,15.00714412]
[1735222893486,20.0,190.19,190.11,15.00714412]
[1735222893711,20.0,190.19,190.12,23.776884]
[1735222900077,20.0,190.19,190.11,0.78876535]
[1735222900078,20.0,190.14,190.11,0.78876535]
[1735222900276,20.0,190.14,190.04,21.03454412]
[1735222900497,20.0,190.12,190.04,6.0274]
[1735222900797,0.12549,190.11,190.01,16.60204412]
[1735222901100,0.12549,190.09,190.01,1.5949]
[1735222901298,0.12549,190.07,189.97,15.00714412]
[1735222901498,0.12549,190.07,189.96,16.60204412]
[1735222901884,0.12549,190.04,189.95,6.0274]
[1735222902207,30.0,190.05,189.89,13.165]
[1735222902208,20.0,190.0,189.91,17.39145041]
[1735222902499,20.0,190.0,189.93,23.776884]
[1735222902715,20.0,190.0,189.92,15.00714412]
[1735222903475,0.12549,189.99,189.9,15.00714412]
[1735222903681,30.12549,189.99,189.89,21.03454412]
[1735222903877,20.0,189.96,189.89,6.0274]
[1735222904087,30.0,190.01,189.89,21.03454412]
[1735222904394,20.0,189.98,189.92,24.00735422]
[1735222904601,30.0,190.03,189.93,47.78423822]
[1735222904904,0.12549,190.02,189.94,23.776884]
[1735222905097,0.12549,190.02,189.93,24.00735422]
[1735222905098,20.12549,190.02,189.93,24.00735422]
[1735222905304,20.12549,190.02,189.92,47.78423822]
[1735222905615,30.0,190.03,189.94,23.776884]
[1735222905616,20.0,190.03,189.94,23.776884]
[1735222905809,20.0,190.03,189.96,23.776884]
[1735222906121,20.0,190.05,189.97,23.776884]
[1735222906506,0.12549,190.04,189.97,23.776884]
[1735222906705,20.0,190.03,189.97,23.776884]
[1735222907324,20.0,190.03,189.95,23.776884]
[1735222907625,20.0,190.03,189.95,47.78423822]
[1735222907817,20.0,190.03,189.96,23.776884]
[1735222908800,20.0,190.03,189.95,24.00735422]
[1735222909000,20.0,190.03,189.96,23.776884]
[1735222909204,20.0,190.03,189.95,47.78423822]
[1735222910139,20.0,190.03,189.94,47.78423822]
[1735222910713,0.12549,190.05,189.95,24.00735422]
[1735222910919,33.4116,190.09,189.99,23.776884]
[1735222911092,1.5297,190.09,190.02,24.00735422]
[1735222911428,1.8819,190.13,190.03,47.78423822]
[1735222911605,1.5452,190.14,190.06,23.776884]
[1735222911803,0.12549,190.13,190.06,23.776884]
[1735222912307,0.12549,190.14,190.04,23.776884]
[1735222912509,30.0,190.15,190.04,23.776884]
[1735222912829,0.12549,190.14,190.04,23.776884]
[1735222913015,20.0,190.12,190.04,23.776884]
[1735222913624,0.12549,190.11,190.02,24.00735422]
[1735222913916,20.0,190.06,189.97,25.53215422]
[1735222914093,0.12549,190.05,189.97,1.5248]
[1735222914416,0.12549,190.05,189.96,24.79652895]
[1735222914621,0.12549,190.05,189.97,24.00735422]
[1735222914919,0.12549,190.05,189.96,24.00735422]
[1735222915312,0.12549,190.05,189.97,23.776884]
[1735222918714,20.0,190.07,189.99,47.78423822]
[1735222918910,1.5452,190.12,190.01,47.78423822]
[1735222919114,1.5452,190.12,190.03,23.776884]
[1735222919509,0.12549,190.11,190.02,23.776884]
[1735222920206,20.0,190.1,190.02,23.776884]
[1735222921140,0.12549,190.11,190.02,23.776884]
[1735222921513,0.12549,190.11,190.02,47.78423822]
[1735222921813,7.8872,190.18,190.02,47.78423822]
[1735222921814,38.86906327,190.17,190.05,23.776884]
[1735222922012,8.86906327,190.17,190.05,23.776884]
[1735222922209,30.0,190.15,190.05,23.776884]
[1735222922431,0.12549,190.14,190.02,24.00735422]
[1735222922609,30.0,190.11,190.01,23.776884]
[1735222922809,0.12549,190.08,189.96,24.79650412]
[1735222923225,0.12549,190.08,189.97,23.776884]
[1735222923422,0.12549,190.06,189.96,24.79650412]
[1735222923632,0.12549,190.06,189.94,31.03247759]
[1735222923831,0.12549,190.06,189.95,24.00735422]
[1735222924130,0.12549,190.06,189.96,23.776884]
[1735222924430,0.12549,190.06,189.95,24.00735422]
[1735222924735,20.12549,190.06,189.96,24.79676878]
[1735222925113,1.5452,190.07,189.96,24.79676878]
[1735222925114,1.5452,190.07,189.99,23.776884]
[1735222925406,41.72337633,190.16,190.03,47.78423822]
[1735222925407,1.5452,190.12,190.03,47.78423822]
[1735222925618,1.5452,190.12,190.04,24.79646499]
[1735222925817,1.5452,190.12,190.04,0.78911077]
[1735222926027,1.5452,190.12,190.05,23.776884]
[1735222926231,7.32386327,190.17,190.05,40.42302125]
[1735222926412,7.32386327,190.17,190.06,0.78900221]
[1735222926620,0.12549,190.16,190.06,0.78900221]
[1735222926823,30.12549,190.16,190.04,6.0912]
[1735222927734,20.0,190.13,190.04,6.0912]
[1735222930044,30.12549,190.16,190.04,32.72735109]
[1735222930337,0.12549,190.13,190.05,0.78903408]
[1735222930546,20.0,190.14,190.06,23.776884]
[1735222930719,1.5365,190.18,190.07,27.42511181]
[1735222931034,0.12549,190.17,190.07,0.78896072]
[1735222931241,0.12549,190.17,190.04,6.88017063]
[1735222931431,0.12549,190.14,190.04,6.88017063]